Cogmind - Beta 13 @@@ ROGUE MODE // 2024.04.21 @ 21:00:19 Player: pJotoro Result: Destroyed by S-27 Virus with Autogun Performance ------------- Evolutions (5) 2500 Regions Visited (7) 1400 Robots Destroyed (107) 535 Value Destroyed (3682) 3682 Prototype IDs (2) 40 Alien Tech Used (0) 0 Bonus (98) 98 TOTAL SCORE: 8255 Bonus ------- High Alert Combat Kills 98 Cogmind --------- Core Integrity 0/1000 Matter 297/300 Energy 83/100 System Corruption 4% Temperature Cool (0) Movement Core (50) Location -5/Factory Parts ------- > --- POWER (3) -------- (None) > --- PROPULSION (4) --- (None) > --- UTILITY (4) ------ Improved Terrain Scan Processor Graphene Brace > --- WEAPON (6) ------- (None) > --- INVENTORY (5) ---- (None) Peak State ------------ > --- POWER ------------ Improved Deuterium Engine Reinforced Deuterium Engine Micro Nuclear Core > --- PROPULSION ------- Aluminum Leg Aluminum Leg Titanium Leg > --- UTILITY ---------- Targeting Computer Transmission Jammer Improved Medium Armor Plating Graphene Brace > --- WEAPON ----------- Variable Charge Gun Improved EM Pulse Cannon Autogun Autogun Autogun Mini Assault Cannon > --- INVENTORY -------- Improved Terrain Scan Processor [Rating: 54] Favorites ----------- Power Micro Nuclear Core Engine Improved Ion Engine Power Core Micro Nuclear Core Propulsion Light Treads Treads Light Treads Leg Aluminum Leg Wheel Wheel Utility Signal Interpreter Device Improved Sensor Array Storage Compact Matter Pod Processor Signal Interpreter Protection Improved Medium Armor Plating Weapon Improved Light Cannon Energy Gun Medium Laser Energy Cannon Plasma Cannon Ballistic Gun Autogun Ballistic Cannon Improved Light Cannon Launcher Mini Grenade Launcher Special Weapon Mining Laser Build | -11 -10 -9 -9 -8 -7 -6 -5 ------- Run | Yrd Mat Mat Sto Mat Fac Fac Fac Slots Evolved 10 | . . 2 . 2 2 2 2 Power 2 | . . . . . . 2 . Propulsion 2 | . . . . 1 1 . . Utility 2 | . . 1 . 1 . . . Weapon 4 | . . 1 . . 1 . 2 Parts Attached 136 | 8 7 18 6 6 59 3 29 Power 21 | 1 2 3 . 1 7 2 5 Engine 13 | 1 2 3 . 1 3 1 2 Core 8 | . . . . . 4 1 3 Reactor . | . . . . . . . . Propulsion 35 | 4 1 4 3 1 16 . 6 Treads 13 | 2 1 1 3 1 5 . . Leg 18 | 2 . 3 . . 7 . 6 Wheel 4 | . . . . . 4 . . Hover . | . . . . . . . . Flight . | . . . . . . . . Utility 23 | 1 2 1 . 1 14 1 3 Device 11 | . 1 . . 1 7 . 2 Storage 2 | 1 . . . . 1 . . Processor 8 | . 1 1 . . 5 . 1 Hackware . | . . . . . . . . Protection 2 | . . . . . 1 1 . Artifact . | . . . . . . . . Weapon 57 | 2 2 10 3 3 22 . 15 Energy Gun 13 | 2 2 2 . . 5 . 2 Energy Cannon 12 | . . 2 . . 7 . 3 Ballistic Gun 11 | . . . . . 5 . 6 Ballistic Cannon 14 | . . 3 2 2 5 . 2 Launcher 5 | . . 3 1 1 . . . Special Weapon 2 | . . . . . . . 2 Impact Weapon . | . . . . . . . . Slashing Weapon . | . . . . . . . . Piercing Weapon . | . . . . . . . . Special Melee Weapon . | . . . . . . . . Unidentified Prototypes 1 | . . . . . 1 . . Corrupted Parts 1 | . . . . . 1 . . System Corruption 8 | . . . . . 8 . . Parts Lost 48 | . . 1 . 1 11 1 34 Power 8 | . . . . . . . 8 Propulsion 16 | . . 1 . . 5 1 9 Utility 7 | . . . . . 3 . 4 Weapon 17 | . . . . 1 3 . 13 Highest Loss Streak 13 | . . 1 . 1 3 1 13 To Critical Strikes . | . . . . . . . . Average Slot Usage (%) 87 | . 98 98 100 94 90 89 62 Engine 4 | . 14 11 11 9 1 7 4 Core 3 | . . . . . 5 6 3 Treads 13 | . 28 18 14 21 15 . . Leg 7 | . . 2 7 . 6 22 14 Device 10 | . 12 11 11 18 9 6 9 Processor 15 | . 12 22 22 18 17 11 4 Energy Gun 5 | . 28 11 . . 4 . 4 Energy Cannon 3 | . . . . . 6 . 1 Ballistic Gun 5 | . . . . . 4 26 12 Ballistic Cannon 10 | . . 9 22 23 13 . 2 Launcher 1 | . . 11 11 3 . . . Naked Turns . | . . . . . . . . Heaviest Build 65 | 12 12 17 19 23 33 51 65 Greatest Support 80 | 40 40 40 40 60 80 47 65 Greatest Overweight (x) 5 | 3 . 4 . . 2 1 5 Average Overweight (x) . | . . . . . . . . Largest Inventory Capacity 8 | 8 8 5 5 5 5 5 5 Average Capacity 5 | 7 5 5 5 5 5 5 5 Most Carried 5 | 2 5 5 5 5 5 5 5 Average Carried 4 | . 4 4 4 4 4 4 2 Final Capacity 8 | 8 5 5 5 5 5 5 5 Final Carried 5 | 1 5 5 5 5 5 5 . Class Distribution -------------------- 52% | Scavenger-Skirmisher 15% | Scavenger-Gunner 9% | Scavenger-Mutant 8% | Mutant 8% | Scavenger-Executioner 5% | Skirmisher Dominant Class ---------------- Mutant | -10/Materials Scavenger-Skirmisher | -9/Materials Scavenger-Skirmisher | -9/Storage Scavenger-Skirmisher | -8/Materials Scavenger-Skirmisher | -7/Factory Scavenger-Gunner | -6/Factory Scavenger-Mutant | -5/Factory Resources | -11 -10 -9 -9 -8 -7 -6 -5 ----------- Run | Yrd Mat Mat Sto Mat Fac Fac Fac Matter Collected 3743 | 268 62 403 399 15 1624 98 874 Remotely . | . . . . . . . . Salvage Created 3236 | . 218 480 517 . 1233 67 721 Parts 222 | . 15 37 30 . 93 4 43 Haulers Intercepted . | . . . . . . . . Recyclers Shooed 2 | . . . . . 1 . 1 Parts Field Recycled . | . . . . . . . . Retrieved Matter . | . . . . . . . . Parts Self-Destructed . | . . . . . . . . Prevented . | . . . . . . . . Kills | -11 -10 -9 -9 -8 -7 -6 -5 ------- Run | Yrd Mat Mat Sto Mat Fac Fac Fac Combat Hostiles Destroyed 76 | . 5 13 10 2 25 1 20 Guns 28 | . 4 3 . . 8 1 12 Cannons 40 | . . 7 6 2 17 . 8 AOE 7 | . . 3 4 . . . . Classes Destroyed 13 | . 2 2 3 . 4 . 2 Worker 14 | . . 5 2 . 6 . 1 Builder 3 | . . . 2 . 1 . . Recycler 3 | . . . 2 . 1 . . Watcher 11 | . 2 2 1 . 6 . . Swarmer 16 | . . . . . 7 . 9 Saboteur 1 | . . . . . . . 1 Grunt 26 | . 5 9 3 . 4 . 5 Brawler 1 | . . . 1 . . . . Duelist 1 | . . . . . . . 1 Sentry 17 | . . 4 6 2 5 . . Hunter 2 | . . . . . 1 . 1 Programmer 10 | . . . . . 7 . 3 Heavy 2 | . . . . . 1 1 . Best Kill Streak 16 | . 2 16 16 1 5 1 5 Combat Bots Only 8 | . 2 5 8 1 4 1 4 Max Kills in Single Turn 3 | . 1 2 3 1 2 1 3 Gunslinging . | . . . . . . . . Exploded 2 | . . 2 1 . . . . Melee . | . . . . . . . . Uniques/NPCs Destroyed . | . . . . . . . . Combat | -11 -10 -9 -9 -8 -7 -6 -5 -------- Run | Yrd Mat Mat Sto Mat Fac Fac Fac Hostile Shots Fired 695 | . 29 54 33 22 288 9 260 Missed 215 | . 7 18 12 4 111 . 63 Damage Taken 8194 | . 255 528 306 280 2662 423 3740 Core 1849 | . 80 64 60 43 505 88 1009 Absorbed by Shields . | . . . . . . . . Core Remaining (%) 74 | 100 68 . 69 92 27 89 . Volleys Fired 241 | . 29 30 20 11 87 7 57 Largest 6 | . 2 3 3 3 4 4 6 Hottest 261 | . 100 142 108 117 255 92 261 Shots Fired 655 | . 49 75 47 29 290 28 137 Gun 305 | . 49 24 . . 105 28 99 Cannon 320 | . . 36 40 24 185 . 35 Launcher 27 | . . 15 7 5 . . . Special 3 | . . . . . . . 3 Kinetic 425 | . . 36 40 24 196 28 101 Thermal 174 | . 49 24 . . 67 . 34 Explosive 26 | . . 15 7 4 . . . Electromagnetic 30 | . . . . 1 27 . 2 Robot Hit Streak 14 | . 6 10 6 8 12 6 14 Robot Miss Streak 7 | . 4 7 2 2 5 1 5 Penetration Max . | . . . . . . . . Secondary Targets 1 | . . . . . . . 1 Max Gunslinging Chain 1 | . . . . . . . 1 Shots Hit Robots 346 | . 27 31 27 21 141 21 78 Core Hits 179 | . 12 28 24 4 69 4 38 Critical Kills 1 | . . . . . . . 1 Critical Parts Destroyed 1 | . . . . . 1 . . Critical Strikes 12 | . 3 1 . 1 4 . 3 Burn 3 | . 3 . . . . . . Destroy 2 | . . . . . 1 . 1 Blast 5 | . . 1 . 1 1 . 2 Corrupt 2 | . . . . . 2 . . Melee Attacks . | . . . . . . . . Impact . | . . . . . . . . Slashing . | . . . . . . . . Piercing . | . . . . . . . . Sneak Attacks . | . . . . . . . . Combat Hostiles . | . . . . . . . . Follow-up Attacks . | . . . . . . . . Damage Inflicted 8452 | . 333 1114 1002 443 3391 323 1846 Guns 2932 | . 333 204 . . 980 323 1092 Cannons 4203 | . . 336 482 353 2343 . 689 Explosions 1252 | . . 574 520 90 68 . . Melee . | . . . . . . . . Ramming . | . . . . . . . . Kinetic 4850 | . . 336 482 353 2070 323 1286 Thermal 2026 | . 333 204 . . 955 . 534 Explosive 1160 | . . 574 520 66 . . . Electromagnetic 416 | . . . . 24 366 . 26 Impact . | . . . . . . . . Slashing . | . . . . . . . . Piercing . | . . . . . . . . Highest Corruption 24 | . . . . . 24 . 4 Average Corruption 11 | . . . . . 14 . 3 Corruption Purged . | . . . . . . . . Corruption Blocked . | . . . . . . . . Effects 119 | . . . . . 104 . 15 Message Errors 34 | . . . . . 29 . 5 Matter Fused 31 | . . . . . 28 . 3 Heat Flow Errors 13 | . . . . . 10 . 3 Energy Discharges 8 | . . . . . 8 . . Parts Rejected 2 | . . . . . 2 . . Parts Fused 1 | . . . . . 1 . . Data Loss (minor) 4 | . . . . . 4 . . Data Loss (major) 4 | . . . . . 2 . 2 Misfires 11 | . . . . . 9 . 2 Misdirections 2 | . . . . . 2 . . Weapon Failures 9 | . . . . . 9 . . Overload Shots . | . . . . . . . . Overflow Damage 82 | . . 2 19 . 39 . 22 Projectiles 67 | . . . 6 . 39 . 22 Explosions 15 | . . 2 13 . . . . Melee . | . . . . . . . . Knockbacks 16 | . . . 1 . 9 . 6 Impact . | . . . . . . . . Kinetic 15 | . . . 1 . 8 . 6 Secondary 1 | . . . . . 1 . . Self-Inflicted Damage 99 | . . 49 . 14 36 . . Shots 4 | . . 2 . 1 1 . . Rammed . | . . . . . . . . Targets Rammed . | . . . . . . . . Kicked . | . . . . . . . . Crushed . | . . . . . . . . Highest Temperature 723 | . 341 408 199 42 723 177 511 Average Temperature 135 | . 118 96 60 13 150 91 187 Received Heat Transfer 1626 | . 159 273 108 153 402 . 531 Effects 40 | . 1 2 . . 28 . 9 Shutdowns 12 | . . 1 . . 8 . 3 Energy Bleed 3 | . . . . . 2 . 1 Interference 4 | . 1 . . . 1 . 2 Matter Decay 5 | . . 1 . . 1 . 3 Damage (minor) 6 | . . . . . 6 . . Damage (major) 8 | . . . . . 8 . . Damage (core) 2 | . . . . . 2 . . Siege Activations . | . . . . . . . . Robots Corrupted . | . . . . . . . . Combat Hostiles . | . . . . . . . . Parts Fried 1 | . . . . . 1 . . Impact Corruptions . | . . . . . . . . Robots Melted 1 | . 1 . . . . . . Combat Hostiles 1 | . 1 . . . . . . Parts Melted 6 | . 2 2 . . . . 2 Heat Transferred 4197 | . 1197 518 . . 1568 . 914 Parts Sabotaged . | . . . . . . . . Parts Stolen . | . . . . . . . . Parts Stripped . | . . . . . . . . Power Chain Reactions 1 | . . . . . 1 . . Alert | -11 -10 -9 -9 -8 -7 -6 -5 ------- Run | Yrd Mat Mat Sto Mat Fac Fac Fac Peak Influence 657 | . 194 586 657 302 367 214 234 Initial 193 | . . . 162 193 137 179 104 Average 193 | . 72 253 542 256 183 189 99 Maximum Alert Level 2 | . . 2 2 1 1 1 1 Low Security (%) 61 | 100 100 46 7 16 65 69 69 Level 1 30 | . . 31 7 83 34 30 30 Level 2 8 | . . 21 85 . . . . Level 3 . | . . . . . . . . Level 4 . | . . . . . . . . Level 5 . | . . . . . . . . High Security . | . . . . . . . . Max Security . | . . . . . . . . Squads Dispatched 18 | . 1 1 2 . 9 . 5 Investigation 1 | . . . . . 1 . . Extermination 9 | . . . . . 6 . 3 Reinforcement 7 | . 1 1 2 . 2 . 1 Assault 1 | . . . . . . . 1 Garrison . | . . . . . . . . Intercept . | . . . . . . . . Searches Triggered . | . . . . . . . . Construction Impeded 1 | . . . 1 . . . . Haulers Reinforced . | . . . . . . . . Active Scanning Responses . | . . . . . . . . Cargo Convoy Interrupts . | . . . . . . . . Stealth | -11 -10 -9 -9 -8 -7 -6 -5 --------- Run | Yrd Mat Mat Sto Mat Fac Fac Fac Distress Signals 3 | . . 1 1 . 1 . . Communications Jammed 6 | . . . . . . 6 . Distress Signals . | . . . . . . . . Times Spotted 112 | . 9 19 12 2 35 2 33 Peak Tracking Total 7 | . 3 6 3 1 4 1 7 Tactical Retreats 4 | . . . . . 1 1 2 Traps | -11 -10 -9 -9 -8 -7 -6 -5 ------- Run | Yrd Mat Mat Sto Mat Fac Fac Fac Traps Triggered 11 | . 1 . . . 8 . 2 Indirectly . | . . . . . . . . Trap Hack Attempts . | . . . . . . . . Triggered . | . . . . . . . . Disarmed . | . . . . . . . . Reprogrammed . | . . . . . . . . Reused . | . . . . . . . . Traps Extracted . | . . . . . . . . Installed . | . . . . . . . . Triggered . | . . . . . . . . Machines | -11 -10 -9 -9 -8 -7 -6 -5 ---------- Run | Yrd Mat Mat Sto Mat Fac Fac Fac Machines Disabled 13 | . . 5 2 2 4 . . Max in Single Turn 2 | . . 2 1 2 1 . . Garrison Access 1 | . . . . . . . 1 Machines Repaired . | . . . . . . . . Machines Dismantled . | . . . . . . . . Machines Sabotaged . | . . . . . . . . Overloaded Fab Kills . | . . . . . . . . Hacking | -11 -10 -9 -9 -8 -7 -6 -5 --------- Run | Yrd Mat Mat Sto Mat Fac Fac Fac Machines Accessed . | . . . . . . . . Terminals . | . . . . . . . . Fabricators . | . . . . . . . . Repair Stations . | . . . . . . . . Recycling Units . | . . . . . . . . Scanalyzers . | . . . . . . . . Garrison Access . | . . . . . . . . Total Hacks . | . . . . . . . . Successful . | . . . . . . . . Failed . | . . . . . . . . Catastrophic . | . . . . . . . . Database Lockouts . | . . . . . . . . Manual . | . . . . . . . . Terminals . | . . . . . . . . Fabricators . | . . . . . . . . Repair Stations . | . . . . . . . . Recycling Units . | . . . . . . . . Scanalyzers . | . . . . . . . . Garrison Access . | . . . . . . . . Terminal Hacks . | . . . . . . . . Fabricator Hacks . | . . . . . . . . Repair Station Hacks . | . . . . . . . . Recycling Unit Hacks . | . . . . . . . . Scanalyzer . | . . . . . . . . Garrison Access Hacks . | . . . . . . . . Unauthorized Hacks . | . . . . . . . . Terminals . | . . . . . . . . Fabricators . | . . . . . . . . Repair Stations . | . . . . . . . . Recycling Units . | . . . . . . . . Scanalyzers . | . . . . . . . . Garrison Access . | . . . . . . . . Data Cores Recovered . | . . . . . . . . Used . | . . . . . . . . Hacking Detections . | . . . . . . . . Full Trace Events . | . . . . . . . . Feedback Events . | . . . . . . . . Feedback Blocked . | . . . . . . . . Robot Schematics Acquired . | . . . . . . . . Robots Built . | . . . . . . . . Authchips . | . . . . . . . . Time . | . . . . . . . . Total Robot Build Rating . | . . . . . . . . Part Schematics Acquired . | . . . . . . . . Parts Built . | . . . . . . . . Authchips . | . . . . . . . . Time . | . . . . . . . . Total Part Build Rating . | . . . . . . . . Parts Repaired . | . . . . . . . . Time . | . . . . . . . . Parts Recycled . | . . . . . . . . Recycled Matter . | . . . . . . . . Retrieved Matter . | . . . . . . . . Retrieved Components . | . . . . . . . . Parts Scanalyzed . | . . . . . . . . Part Schematics Acquired . | . . . . . . . . Parts Damaged . | . . . . . . . . Bothacking | -11 -10 -9 -9 -8 -7 -6 -5 ------------ Run | Yrd Mat Mat Sto Mat Fac Fac Fac Used RIF Installer . | . . . . . . . . Robots Hacked . | . . . . . . . . Non-combat . | . . . . . . . . Combat . | . . . . . . . . Robot Hacks Applied . | . . . . . . . . Relay Couplers Released 2 | . . . . . . . 2 Machine Destruction 2 | . . . . . . . 2 Fabnet Peak Effective % . | . . . . . . . . Robots Rewired . | . . . . . . . . Allies Hacked . | . . . . . . . . Hacks Repelled . | . . . . . . . . Allies | -11 -10 -9 -9 -8 -7 -6 -5 -------- Run | Yrd Mat Mat Sto Mat Fac Fac Fac Total Allies . | . . . . . . . . Largest Group . | . . . . . . . . Highest-Rated Group . | . . . . . . . . Highest-Rated Ally . | . . . . . . . . Total Orders . | . . . . . . . . Ally Attacks . | . . . . . . . . Total Damage . | . . . . . . . . Kills . | . . . . . . . . Allies Corrupted . | . . . . . . . . Allies Melted . | . . . . . . . . Intel | -11 -10 -9 -9 -8 -7 -6 -5 ------- Run | Yrd Mat Mat Sto Mat Fac Fac Fac Robot Analysis Total . | . . . . . . . . Derelict Logs Recovered . | . . . . . . . . Drone Launches . | . . . . . . . . Drone Recoveries . | . . . . . . . . Exploration | -11 -10 -9 -9 -8 -7 -6 -5 ------------- Run | Yrd Mat Mat Sto Mat Fac Fac Fac Turns Passed 5555 | 99 411 438 418 269 2717 187 1016 Spaces Moved 2746 | 51 193 198 227 140 1452 108 377 Core 34 | 10 . 2 . . . . 22 Treads 1708 | 33 193 160 175 140 1007 . . Legs 976 | 8 . 36 52 . 417 108 355 Wheels 28 | . . . . . 28 . . Hover . | . . . . . . . . Flight . | . . . . . . . . Fastest Speed 50 | 50 160 120 120 160 80 122 50 Average Speed 156 | 161 160 154 150 160 153 133 173 Slowest Speed 300 | 200 160 250 160 160 260 193 300 Overloaded Moves . | . . . . . . . . Propulsion Burnouts . | . . . . . . . . Robots Hopped . | . . . . . . . . Cave-ins Triggered . | . . . . . . . . Exploration Rate (%) 21 | 4 33 27 37 19 45 4 6 Regions Visited 7 Branch Regions 1 Pre-discovered Areas . | . . . . . . . . Known Exits Taken 3 | . . 1 1 1 . . . Unknown Exits Taken 4 | 1 1 . . . 1 1 . Scrap Searched . | . . . . . . . . Spaces Dug 5 | . . 5 . . . . . Terrain Destroyed 198 | . . 81 80 23 12 . 2 Melee . | . . . . . . . . Projectile 18 | . . 5 3 . 8 . 2 AOE 180 | . . 76 77 23 4 . . Terrain Rammed . | . . . . . . . . Walls Destroyed . | . . . . . . . . Machines Disabled . | . . . . . . . . Actions | -11 -10 -9 -9 -8 -7 -6 -5 --------- Run | Yrd Mat Mat Sto Mat Fac Fac Fac Total 3546 | 69 249 270 263 161 1744 141 649 Wait 279 | . 3 3 . . 87 17 169 Move 2739 | 50 192 197 226 139 1451 107 377 Hop . | . . . . . . . . Pick Up 65 | 9 10 6 3 3 15 4 15 Fast Attach 60 | . 3 8 3 1 40 . 5 Attach 47 | 8 2 4 . 2 8 3 20 Detach 1 | . 1 . . . . . . Swap 29 | . 2 6 3 3 11 . 4 Drop 80 | 2 7 16 8 2 40 3 2 Fire 241 | . 29 30 20 11 87 7 57 Melee . | . . . . . . . . Ram . | . . . . . . . . Kick . | . . . . . . . . Crush . | . . . . . . . . Escape Stasis 5 | . . . . . 5 . . Rewire . | . . . . . . . . Trap . | . . . . . . . . Miscellaneous . | . . . . . . . . Route ------- -11/Scrapyard -10/Materials -9/Materials -9/Storage -8/Materials -7/Factory -6/Factory -5/Factory History --------- Turn | Location | Event 2 | -11/Scrapyard | Met Revision 17 37 | -11/Scrapyard | Discovered new exit (range 15) 100 | -11/Scrapyard | Entered Materials 307 | -10/Materials | Build established: Mutant 457 | -10/Materials | Discovered new exit (range 13) 511 | -10/Materials | Entered another Materials area 511 | -9/Materials | Evolved 2 slots: Utility x1, Weapon x1 832 | -9/Materials | Discovered new exit (range 17) 911 | -9/Materials | Identified exit to Storage 949 | -9/Materials | Entered Storage 952 | -9/Storage | Build established: Scavenger-Skirmisher 1055 | -9/Storage | Destroyed 8 combat bots 1343 | -9/Storage | Discovered new exit (range 16) 1365 | -9/Storage | Identified exit to Materials 1367 | -9/Storage | Entered Materials 1367 | -8/Materials | Evolved 2 slots: Propulsion x1, Utility x1 1614 | -8/Materials | Discovered new exit (range 10) 1635 | -8/Materials | Identified exit to Factory 1636 | -8/Materials | Entered Factory 1636 | -7/Factory | Evolved 2 slots: Propulsion x1, Weapon x1 2909 | -7/Factory | System corruption reached 10% 3584 | -7/Factory | Core integrity fell below 50% 3714 | -7/Factory | Lost 3 parts (1u2w) 4054 | -7/Factory | Build established: Scavenger-Gunner 4318 | -7/Factory | Discovered new exit (range 14) 4353 | -7/Factory | Entered another Factory area 4353 | -6/Factory | Evolved 2 slots: Power x2 4441 | -6/Factory | Discovered new exit (range 15) 4540 | -6/Factory | Entered another Factory area 4540 | -5/Factory | Evolved 2 slots: Weapon x2 4833 | -5/Factory | Build established: Scavenger-Executioner 4933 | -5/Factory | Lost 5 parts (1p1n3u) 5092 | -5/Factory | Lost 12 parts (3p1n8w) 5292 | -5/Factory | Build established: Scavenger-Mutant 5523 | -5/Factory | Core integrity fell below 50% 5550 | -5/Factory | Core integrity fell below 20% 5556 | -5/Factory | Destroyed by S-27 Virus with Autogun Last Messages --------------- Acquired 10 matter. Carbon-fiber Leg destroyed. Lgt. Nuclear Core destroyed. K-01 Serf destroyed. K-01 Serf collects debris. T-07 Excavator destroyed. K-01 Serf collects debris. Lgt. Ion Engine destroyed. Acquired Mining Laser. Acquired Lgt. Ion Engine. System corrupted: Heat flow error (+291). Acquired 10 matter. K-01 Serf collects debris. Acquired Imp. Plasma Cutter. K-01 Serf collects debris. Imp. Plasma Cutter destroyed. Lgt. Ion Engine destroyed. Mining Laser destroyed. Acquired 2 matter. [Achievement: 5k Club] Map ----- +----------------------------------------------------+ | ???????????????????????????????????????????????? | | ???????????????????????????????????????????????? | | ???????????????????????????????????????????????? | | ???????????????????????????????????????????????? | | ???????????????????????????????????????????????? | | ???????????????????????????????????????????????? | | ???????????????????????????????????????????????? | | ???????????????????????????????????????????????? | | ???????????????????????????????????????????????? | | ???????????????????????????????????????????????? | | ???????????????????????????????????????????????? | | ??????????? ???????????????????????????????? | | ?????????? #??????????????????????????????? | | ??????????# #?????????""???????????????????? | | ??????????# #?????????"" ??????????????????? | | ??????????# #?????????""???????????????????? | | ??????????# #????????? ???????????????????? | | ??????????# #????????? ???????????????????? | | ??????????+ #??????###/##########??????????? | | ??????????# #??????# ss #??????????? | | ??????????# #??????# s #??????????? | | ??????????# ######## #??????????? | | ??????????# % # s #??????????? | | ??????????# * # #??????????? | | ??????????# #s #??????????? | | ??????????# % s @ #??????????? | | ??????????# % #!= #??????????? | | ???###########+### # #??????????? | | ???# %= =## # #??????????? | | ??#" % ## # #??????????? | | ??## ## # #??????????? | | ???# ## ##############??????????? | | ???# ## ################????????? | | ???# ## # #??????? | | ???# ## # """ """ """ ! #??????? | | ???# ## # """ """ """ #??????? | | ???# ## # """ """ """ | #??????? | | ???# ## # #??????? | | ???# ## # """ """ """ #??????? | | ???# ## + """ """ """ #??????? | | ???############### # """ """ """ #??????? | | ?????????????????# # !#??????? | | ???############### ################????????? | | ???# #?????????????????????? | | ???# #?????????????????????? | | ???# #?????????????????????? | | ####% % #?????????????????????? | | # %% #?????????????????????? | | # ############+#####????????????????????? | | # #??????# * #????????????????????? | +----------------------------------------------------+ Best States ------------- Heat Dissipation 61 Energy Generation 37 Energy Capacity 530 Matter Stores 300 Matter Capacity 450 Sight Range 20 Robot Scan Range 15 Terrain Scan Density 110 Jamming Range 12 Armor Coverage 225 Evasion (%) 55 Targeting Accuracy 5 Target Analysis 5 Recoil Reduction 4 Energy Filtering 30 Item Schematics ----------------- None Robot Schematics ------------------ None Fabricated ------------ Nothing Alien Tech Used ----------------- None Achievements -------------- 5k Club Oh No You Don't! Serviceable Loadout Challenges ------------ None Game ------ Seed DeepDisruptionThrower Manual? 0 Play Time 01:19:31 Cumulative 7.0 hours Start 2024.04.19 @ 22:10:43 End 2024.04.21 @ 21:00:19 Sessions 3 Manual Loads 0 Difficulty Rogue Special Mode None Game No. 12 Rogue 12 Adventurer 0 Explorer 0 Win Type - Total 0 Types 0/0/0/0/0/0/0/0/0 Lore% 2 Gallery% 13 Achievement% 9 Wizard Run 0 Options --------- Layout 0 ASCII 0 Keyboard 0 Movement Mouse Keybinds 0 Fullscreen 1 Font 36/Smallcaps Map View 76x50 Zoom Use 0% Tactical HUD 0 Map Filters NONE Filters NONE Steam 1 RUN: 4642f018-c064-4ab7-9f8c-54e85aff3775